[Event "*** Qualifier 3: Titled Tuesday 3|2 Blitz"]
[Site "Chess.com"]
[Date "2017.04.18"]
[Round "9"]
[White "SabinaFoisor"]
[Black "JusticeBot"]
[Result "1/2-1/2"]
[WhiteElo "2282"]
[BlackElo "2515"]
[TimeControl "180+2"]
[EndTime "15:03:18 PDT"]
[Termination "Game drawn by 50-move rule"]

1. d4 {[%clk 0:02:40.4]} 1... Nf6 {[%clk 0:03:00.6]} 2. Nf3 {[%clk 0:02:40.4]}
2... g6 {[%clk 0:03:01.5]} 3. Bf4 {[%clk 0:02:40.1]} 3... Bg7 {[%clk 0:03:02.9]}
4. e3 {[%clk 0:02:41.6]} 4... O-O {[%clk 0:03:04.4]} 5. Bc4 {[%clk 0:02:36.4]}
5... d6 {[%clk 0:03:06.3]} 6. Nbd2 {[%clk 0:02:34.3]} 6... Nbd7 {[%clk
0:03:06.1]} 7. h3 {[%clk 0:02:34.3]} 7... Qe8 {[%clk 0:03:07.2]} 8. Bh2 {[%clk
0:02:26.8]} 8... e5 {[%clk 0:03:08.4]} 9. O-O {[%clk 0:02:26.4]} 9... Qe7 {[%clk
0:03:09]} 10. a3 {[%clk 0:02:15.4]} 10... b6 {[%clk 0:03:10.2]} 11. b4 {[%clk
0:02:14.3]} 11... Bb7 {[%clk 0:03:10.4]} 12. Bb3 {[%clk 0:02:11.9]} 12... e4
{[%clk 0:03:03.3]} 13. Ne1 {[%clk 0:02:11]} 13... Rfe8 {[%clk 0:02:59.8]} 14. c4
{[%clk 0:02:08.2]} 14... Nf8 {[%clk 0:02:55.6]} 15. Nc2 {[%clk 0:02:06.4]} 15...
g5 {[%clk 0:02:56.3]} 16. a4 {[%clk 0:02:03.2]} 16... Ng6 {[%clk 0:02:47.6]} 17.
a5 {[%clk 0:02:02.3]} 17... h5 {[%clk 0:02:35.5]} 18. axb6 {[%clk 0:01:59]}
18... axb6 {[%clk 0:02:34]} 19. Rxa8 {[%clk 0:01:55.9]} 19... Rxa8 {[%clk
0:02:35.9]} 20. Qb1 {[%clk 0:01:50.7]} 20... g4 {[%clk 0:02:25.8]} 21. hxg4
{[%clk 0:01:48.7]} 21... Nxg4 {[%clk 0:02:27]} 22. Qb2 {[%clk 0:01:29.7]} 22...
Qg5 {[%clk 0:02:21.4]} 23. Ra1 {[%clk 0:01:20.2]} 23... Nxh2 {[%clk 0:02:00.8]}
24. Kxh2 {[%clk 0:01:20.1]} 24... Nh4 {[%clk 0:02:01.4]} 25. Rxa8+ {[%clk
0:01:15]} 25... Bxa8 {[%clk 0:02:03.3]} 26. Ne1 {[%clk 0:01:12.5]} 26... Bb7
{[%clk 0:00:46.4]} 27. Qa2 {[%clk 0:01:02.8]} 27... Qd8 {[%clk 0:00:42.6]} 28.
c5 {[%clk 0:00:59.2]} 28... dxc5 {[%clk 0:00:31.2]} 29. Bxf7+ {[%clk 0:00:58]}
29... Kh7 {[%clk 0:00:32.6]} 30. bxc5 {[%clk 0:00:56.5]} 30... bxc5 {[%clk
0:00:33.4]} 31. Qb1 {[%clk 0:00:47]} 31... Qd6+ {[%clk 0:00:32]} 32. g3 {[%clk
0:00:41]} 32... Qb6 {[%clk 0:00:04.3]} 33. Qxb6 {[%clk 0:00:39.5]} 33... cxb6
{[%clk 0:00:06.2]} 34. gxh4 {[%clk 0:00:34.3]} 34... cxd4 {[%clk 0:00:08.1]} 35.
Nc2 {[%clk 0:00:34]} 35... dxe3 {[%clk 0:00:07]} 36. Nxe3 {[%clk 0:00:33.5]}
36... Bf6 {[%clk 0:00:07]} 37. Kg3 {[%clk 0:00:33]} 37... Be5+ {[%clk
0:00:07.5]} 38. Kg2 {[%clk 0:00:33.6]} 38... Bf6 {[%clk 0:00:08.4]} 39. Bxh5
{[%clk 0:00:33.8]} 39... Bxh4 {[%clk 0:00:09.4]} 40. Bg4 {[%clk 0:00:34.1]}
40... Kg6 {[%clk 0:00:07.4]} 41. Bf5+ {[%clk 0:00:35]} 41... Kf6 {[%clk
0:00:08.4]} 42. Bxe4 {[%clk 0:00:36.4]} 42... Bxe4+ {[%clk 0:00:08.4]} 43. Nxe4+
{[%clk 0:00:38.3]} 43... Ke5 {[%clk 0:00:09.7]} 44. Nc3 {[%clk 0:00:36.6]} 44...
Bxf2 {[%clk 0:00:09.6]} 45. Kxf2 {[%clk 0:00:34.7]} 45... Kd4 {[%clk 0:00:11.1]}
46. Na2 {[%clk 0:00:30]} 46... b5 {[%clk 0:00:10.7]} 47. Nc2+ {[%clk 0:00:31]}
47... Kd3 {[%clk 0:00:11.3]} 48. Nab4+ {[%clk 0:00:32]} 48... Kc3 {[%clk
0:00:12.7]} 49. Ke3 {[%clk 0:00:32.9]} 49... Kc4 {[%clk 0:00:14.2]} 50. Ke4
{[%clk 0:00:31.2]} 50... Kc5 {[%clk 0:00:14.8]} 51. Ke5 {[%clk 0:00:31.2]} 51...
Kc4 {[%clk 0:00:16.2]} 52. Kd6 {[%clk 0:00:30.4]} 52... Kc3 {[%clk 0:00:17.2]}
53. Kd5 {[%clk 0:00:29.5]} 53... Kd2 {[%clk 0:00:18.1]} 54. Kd4 {[%clk
0:00:26.4]} 54... Ke2 {[%clk 0:00:19.4]} 55. Kc3 {[%clk 0:00:22.7]} 55... Kf3
{[%clk 0:00:20.5]} 56. Kd3 {[%clk 0:00:22.9]} 56... Kf4 {[%clk 0:00:21.7]} 57.
Nd4 {[%clk 0:00:21.6]} 57... Ke5 {[%clk 0:00:22.5]} 58. Ke3 {[%clk 0:00:22.7]}
58... Kd6 {[%clk 0:00:22.8]} 59. Ke4 {[%clk 0:00:23]} 59... Kc5 {[%clk
0:00:24.3]} 60. Ndc6 {[%clk 0:00:22.6]} 60... Kc4 {[%clk 0:00:25.1]} 61. Ke3
{[%clk 0:00:23.4]} 61... Kc5 {[%clk 0:00:26.3]} 62. Kd3 {[%clk 0:00:24.4]} 62...
Kd6 {[%clk 0:00:27.1]} 63. Kd4 {[%clk 0:00:25.8]} 63... Ke6 {[%clk 0:00:28.6]}
64. Ne5 {[%clk 0:00:24.7]} 64... Kd6 {[%clk 0:00:29.7]} 65. Ned3 {[%clk
0:00:23.8]} 65... Ke6 {[%clk 0:00:31.1]} 66. Nc5+ {[%clk 0:00:24.1]} 66... Kd6
{[%clk 0:00:32.2]} 67. Nb7+ {[%clk 0:00:24.9]} 67... Ke6 {[%clk 0:00:33.4]} 68.
Ke4 {[%clk 0:00:23.8]} 68... Kf6 {[%clk 0:00:33.8]} 69. Nc5 {[%clk 0:00:22]}
69... Kg5 {[%clk 0:00:33.8]} 70. Ne6+ {[%clk 0:00:21.2]} 70... Kf6 {[%clk
0:00:35]} 71. Nd4 {[%clk 0:00:18.8]} 71... Kg5 {[%clk 0:00:35.6]} 72. Ke5 {[%clk
0:00:19.1]} 72... Kg4 {[%clk 0:00:36.8]} 73. Ke4 {[%clk 0:00:18]} 73... Kg5
{[%clk 0:00:37.6]} 74. Nf5 {[%clk 0:00:18.9]} 74... Kf6 {[%clk 0:00:38.7]} 75.
Ne3 {[%clk 0:00:17.5]} 75... Ke6 {[%clk 0:00:39.5]} 76. Ned5 {[%clk 0:00:17]}
76... Kd6 {[%clk 0:00:40.9]} 77. Kd4 {[%clk 0:00:17.3]} 77... Ke6 {[%clk
0:00:42.3]} 78. Ne3 {[%clk 0:00:14.1]} 78... Kd6 {[%clk 0:00:43.8]} 79. Nf5+
{[%clk 0:00:14.2]} 79... Ke6 {[%clk 0:00:45.7]} 80. Ke4 {[%clk 0:00:14]} 80...
Kf6 {[%clk 0:00:46.9]} 81. Nd4 {[%clk 0:00:13.4]} 81... Kg5 {[%clk 0:00:44.8]}
82. Ke5 {[%clk 0:00:14.5]} 82... Kg4 {[%clk 0:00:45.7]} 83. Ke4 {[%clk
0:00:13.7]} 83... Kg5 {[%clk 0:00:46.8]} 84. Nf3+ {[%clk 0:00:14.3]} 84... Kf6
{[%clk 0:00:48.1]} 85. Nh4 {[%clk 0:00:13.1]} 85... Ke6 {[%clk 0:00:49.5]} 86.
Nf5 {[%clk 0:00:14.5]} 86... Kf6 {[%clk 0:00:50.2]} 87. Nd4 {[%clk 0:00:15.5]}
87... Ke7 {[%clk 0:00:51.3]} 88. Ke5 {[%clk 0:00:16.6]} 88... Kf7 {[%clk
0:00:52.5]} 89. Ne6 {[%clk 0:00:15.8]} 89... Kg6 {[%clk 0:00:54.2]} 90. Nf4+
{[%clk 0:00:14.1]} 90... Kg5 {[%clk 0:00:55.7]} 91. Ne6+ {[%clk 0:00:14.7]}
91... Kg4 {[%clk 0:00:57.2]} 92. Ke4 {[%clk 0:00:15.8]} 92... Kg3 {[%clk
0:00:58.2]} 93. Ke3 {[%clk 0:00:16.7]} 93... Kg4 {[%clk 0:00:59.6]} 94. Nd4
{[%clk 0:00:17.3]} 94... Kg5 {[%clk 0:01:00.5]} 95. Kf3 {[%clk 0:00:18]} 95...
Kf6 {[%clk 0:01:01.7]} 96. Kf4 {[%clk 0:00:19.3]} 96... Ke7 {[%clk 0:01:03]} 97.
Ke5 {[%clk 0:00:19.3]} 97... Kf7 {[%clk 0:00:45.4]} 98. Nf5 {[%clk 0:00:18.6]}
98... Kg8 {[%clk 0:00:45.2]} 99. Kf6 {[%clk 0:00:19.3]} 99... Kh8 {[%clk
0:00:45.9]} 100. Kf7 {[%clk 0:00:18.7]} 100... Kh7 {[%clk 0:00:46.4]} 101. Nd5
{[%clk 0:00:16]} 101... Kh8 {[%clk 0:00:44.4]} 102. Nf6 {[%clk 0:00:13.8]}
1/2-1/2

[Event "*** Qualifier 3: Titled Tuesday 3|2 Blitz"]
[Site "Chess.com"]
[Date "2017.04.18"]
[Round "9"]
[White "roldieyi"]
[Black "Rating-Schmating"]
[Result "0-1"]
[WhiteElo "2222"]
[BlackElo "2299"]
[TimeControl "180+2"]
[EndTime "15:04:41 PDT"]
[Termination "Rating-Schmating won on time"]

1. d4 {[%clk 0:03:00]} 1... Nf6 {[%clk 0:03:00.2]} 2. Nf3 {[%clk 0:03:01.1]}
2... d5 {[%clk 0:03:00.2]} 3. c4 {[%clk 0:03:01.3]} 3... Nc6 {[%clk 0:02:59.2]}
4. Nc3 {[%clk 0:03:00.8]} 4... Bf5 {[%clk 0:03:00.1]} 5. Bf4 {[%clk 0:03:00.8]}
5... e6 {[%clk 0:02:57.6]} 6. c5 {[%clk 0:03:01.2]} 6... Nd7 {[%clk 0:02:45.6]}
7. a3 {[%clk 0:02:58.1]} 7... e5 {[%clk 0:02:46]} 8. dxe5 {[%clk 0:02:52.1]}
8... Nxc5 {[%clk 0:02:41]} 9. Qxd5 {[%clk 0:02:48.1]} 9... Be6 {[%clk
0:02:42.1]} 10. Qxd8+ {[%clk 0:02:42.6]} 10... Rxd8 {[%clk 0:02:44]} 11. e3
{[%clk 0:02:38.5]} 11... Be7 {[%clk 0:02:40.8]} 12. Bb5 {[%clk 0:02:38.9]} 12...
a6 {[%clk 0:02:39.5]} 13. Bxc6+ {[%clk 0:02:38.9]} 13... bxc6 {[%clk 0:02:41.4]}
14. O-O {[%clk 0:02:34.7]} 14... O-O {[%clk 0:02:41.7]} 15. Nd4 {[%clk 0:02:35]}
15... Bd7 {[%clk 0:02:34.2]} 16. Rad1 {[%clk 0:02:34.4]} 16... Ne6 {[%clk
0:02:31.4]} 17. Bg3 {[%clk 0:02:33.1]} 17... c5 {[%clk 0:02:30.8]} 18. Nf5
{[%clk 0:02:31.2]} 18... Rfe8 {[%clk 0:02:28.5]} 19. Nxe7+ {[%clk 0:02:31.4]}
19... Rxe7 {[%clk 0:02:29.7]} 20. Nd5 {[%clk 0:02:33.3]} 20... Ree8 {[%clk
0:02:30]} 21. f4 {[%clk 0:02:28.2]} 21... Ba4 {[%clk 0:02:29.4]} 22. e4 {[%clk
0:01:30.7]} 22... Bxd1 {[%clk 0:02:27.2]} 23. f5 {[%clk 0:01:27.9]} 23... Ng5
{[%clk 0:02:19.5]} 24. Nxc7 {[%clk 0:01:22.4]} 24... Bc2 {[%clk 0:02:11.5]} 25.
Nxe8 {[%clk 0:01:21.4]} 25... Rxe8 {[%clk 0:02:12.5]} 26. e6 {[%clk 0:01:20.8]}
26... Nxe4 {[%clk 0:02:10.1]} 27. exf7+ {[%clk 0:01:20.5]} 27... Kxf7 {[%clk
0:02:10.4]} 28. Rc1 {[%clk 0:01:16.4]} 28... Nxg3 {[%clk 0:02:09.7]} 29. Rxc2
{[%clk 0:01:16.7]} 29... Ne4 {[%clk 0:02:05]} 30. b4 {[%clk 0:01:14.2]} 30...
cxb4 {[%clk 0:02:05.2]} 31. axb4 {[%clk 0:01:14.7]} 31... Rb8 {[%clk 0:02:06]}
32. Rc4 {[%clk 0:01:12.2]} 32... Nd6 {[%clk 0:02:05.5]} 33. Rc6 {[%clk
0:01:12.2]} 33... Nxf5 {[%clk 0:02:06.5]} 34. Rxa6 {[%clk 0:01:12.5]} 34... Rxb4
{[%clk 0:02:07.7]} 35. h3 {[%clk 0:01:12]} 35... Rb2 {[%clk 0:02:07.9]} 36. Kh2
{[%clk 0:01:09.1]} 36... h5 {[%clk 0:02:08.2]} 37. Kg1 {[%clk 0:01:08.2]} 37...
h4 {[%clk 0:02:08.5]} 38. Rc6 {[%clk 0:00:48.6]} 38... Kg8 {[%clk 0:02:06.7]}
39. Rg6 {[%clk 0:00:46.6]} 39... Kh7 {[%clk 0:02:05]} 40. Rg5 {[%clk 0:00:46.8]}
40... g6 {[%clk 0:02:04.5]} 41. Rg4 {[%clk 0:00:46.5]} 41... Kh6 {[%clk
0:02:05.1]} 42. Ra4 {[%clk 0:00:46.3]} 42... Kh5 {[%clk 0:02:05.5]} 43. Ra5
{[%clk 0:00:46.5]} 43... Kh6 {[%clk 0:02:05.8]} 44. Ra4 {[%clk 0:00:45.2]} 44...
Rb1+ {[%clk 0:02:03.6]} 45. Kf2 {[%clk 0:00:43.9]} 45... Kg5 {[%clk 0:02:01.2]}
46. Rg4+ {[%clk 0:00:41.9]} 46... Kf6 {[%clk 0:02:02.2]} 47. Ra4 {[%clk
0:00:43.7]} 47... Rb2+ {[%clk 0:02:02.1]} 48. Kf3 {[%clk 0:00:41.4]} 48... Rb3+
{[%clk 0:02:01.8]} 49. Kf2 {[%clk 0:00:41.2]} 49... Ke5 {[%clk 0:02:00.1]} 50.
Rg4 {[%clk 0:00:39.6]} 50... Rg3 {[%clk 0:01:59.1]} 51. Ra4 {[%clk 0:00:39.3]}
51... Nd4 {[%clk 0:01:57]} 52. Ra8 {[%clk 0:00:34.3]} 52... Kf4 {[%clk
0:01:57.1]} 53. Rf8+ {[%clk 0:00:32.6]} 53... Nf5 {[%clk 0:01:54.9]} 54. Ra8
{[%clk 0:00:33.2]} 54... Rd3 {[%clk 0:01:52]} 55. Ra4+ {[%clk 0:00:32.1]} 55...
Nd4 {[%clk 0:01:51.8]} 56. Ra8 {[%clk 0:00:31.5]} 56... Rd2+ {[%clk 0:01:52.7]}
57. Kg1 {[%clk 0:00:31.7]} 57... Nf5 {[%clk 0:01:49.2]} 58. Rg8 {[%clk
0:00:30.3]} 58... Rd1+ {[%clk 0:01:46.2]} 59. Kf2 {[%clk 0:00:28.8]} 59... Ng3
{[%clk 0:01:44.6]} 60. Rf8+ {[%clk 0:00:26.6]} 60... Kg5 {[%clk 0:01:43.8]} 61.
Ke3 {[%clk 0:00:18.4]} 61... Re1+ {[%clk 0:01:44.8]} 62. Kd3 {[%clk 0:00:17.3]}
62... Nf5 {[%clk 0:01:45.9]} 63. Ra8 {[%clk 0:00:15]} 63... Re3+ {[%clk
0:01:46.2]} 64. Kd2 {[%clk 0:00:15.2]} 64... Rg3 {[%clk 0:01:47.1]} 65. Ke1
{[%clk 0:00:14.5]} 65... Rxg2 {[%clk 0:01:48.4]} 66. Kf1 {[%clk 0:00:14.7]}
66... Rh2 {[%clk 0:01:49.3]} 67. Ra3 {[%clk 0:00:14.1]} 67... Ng3+ {[%clk
0:01:49.1]} 68. Kg1 {[%clk 0:00:14.3]} 68... Rh1+ {[%clk 0:01:46.6]} 69. Kg2
{[%clk 0:00:14.1]} 69... Rb1 {[%clk 0:01:48.2]} 70. Ra5+ {[%clk 0:00:14.1]}
70... Nf5 {[%clk 0:01:49.4]} 71. Ra2 {[%clk 0:00:13.1]} 71... Nd6 {[%clk
0:01:47.4]} 72. Ra5+ {[%clk 0:00:13.2]} 72... Kf4 {[%clk 0:01:48.6]} 73. Ra4+
{[%clk 0:00:13.8]} 73... Ne4 {[%clk 0:01:50]} 74. Ra6 {[%clk 0:00:13.3]} 74...
Rb2+ {[%clk 0:01:51.2]} 75. Kg1 {[%clk 0:00:14.2]} 75... Kf3 {[%clk 0:01:50.2]}
76. Ra3+ {[%clk 0:00:14]} 76... Kf4 {[%clk 0:01:49.5]} 77. Ra6 {[%clk
0:00:14.4]} 77... g5 {[%clk 0:01:51.1]} 78. Ra3 {[%clk 0:00:14.4]} 78... Nd6
{[%clk 0:01:49.8]} 79. Ra4+ {[%clk 0:00:14.4]} 79... Kf5 {[%clk 0:01:50.6]} 80.
Ra5+ {[%clk 0:00:14.9]} 80... Kg6 {[%clk 0:01:51.7]} 81. Ra6 {[%clk 0:00:15.7]}
81... Rd2 {[%clk 0:01:53.3]} 82. Kf1 {[%clk 0:00:15.6]} 82... Kh5 {[%clk
0:01:54.7]} 83. Kg1 {[%clk 0:00:15.7]} 83... Nf5 {[%clk 0:01:51.8]} 84. Ra5
{[%clk 0:00:14.7]} 84... Ne3 {[%clk 0:01:53.2]} 85. Ra3 {[%clk 0:00:13.2]} 85...
Nd5 {[%clk 0:01:54]} 86. Ra5 {[%clk 0:00:12.6]} 86... Nf4 {[%clk 0:01:55.1]} 87.
Ra3 {[%clk 0:00:12.7]} 87... Kg6 {[%clk 0:01:54.8]} 88. Rf3 {[%clk 0:00:10.7]}
88... Kf5 {[%clk 0:01:54.7]} 89. Ra3 {[%clk 0:00:11.5]} 89... Rd3 {[%clk
0:01:53.4]} 90. Ra5+ {[%clk 0:00:11.7]} 90... Ke4 {[%clk 0:01:54.1]} 91. Kh1
{[%clk 0:00:09.7]} 91... Kf3 {[%clk 0:01:53.6]} 92. Rxg5 {[%clk 0:00:09.2]}
92... Rd1+ {[%clk 0:01:52.9]} 93. Kh2 {[%clk 0:00:09.3]} 93... Rd2+ {[%clk
0:01:53.2]} 94. Kh1 {[%clk 0:00:10.3]} 94... Nxh3 {[%clk 0:01:54]} 95. Rf5+
{[%clk 0:00:10.5]} 95... Nf4 {[%clk 0:01:53.7]} 96. Rf8 {[%clk 0:00:09.9]} 96...
h3 {[%clk 0:01:52.6]} 97. Rf7 {[%clk 0:00:10.1]} 97... Rd4 {[%clk 0:01:47.8]}
98. Rf8 {[%clk 0:00:09.7]} 98... Kg3 {[%clk 0:01:43.4]} 99. Rg8+ {[%clk
0:00:10]} 99... Kh4 {[%clk 0:01:44.9]} 100. Rh8+ {[%clk 0:00:10.7]} 100... Nh5
{[%clk 0:01:46.2]} 101. Rg8 {[%clk 0:00:11.3]} 101... Ng3+ {[%clk 0:01:45.4]}
102. Kg1 {[%clk 0:00:11.7]} 102... Rd1+ {[%clk 0:01:45.4]} 103. Kf2 {[%clk
0:00:12.5]} 103... Rf1+ {[%clk 0:01:47]} 104. Ke3 {[%clk 0:00:11.6]} 104... h2
{[%clk 0:01:47.9]} 105. Rh8+ {[%clk 0:00:12.3]} 105... Nh5 {[%clk 0:01:49.2]}
106. Ke2 {[%clk 0:00:12.6]} 106... h1=Q {[%clk 0:01:49.6]} 107. Rxh5+ {[%clk
0:00:13.3]} 107... Kxh5 {[%clk 0:01:50.1]} 0-1

[Event "*** Qualifier 3: Titled Tuesday 3|2 Blitz"]
[Site "Chess.com"]
[Date "2017.04.18"]
[Round "10"]
[White "MateusViageiro"]
[Black "dhanushbharadwaj"]
[Result "1-0"]
[WhiteElo "2305"]
[BlackElo "2401"]
[TimeControl "180+2"]
[EndTime "15:13:29 PDT"]
[Termination "MateusViageiro won by resignation"]

1. e4 {[%clk 0:03:02]} 1... c5 {[%clk 0:03:00]} 2. Nf3 {[%clk 0:03:01.3]} 2...
d6 {[%clk 0:03:00.7]} 3. d4 {[%clk 0:03:02.3]} 3... cxd4 {[%clk 0:03:02.6]} 4.
Nxd4 {[%clk 0:03:03.7]} 4... Nf6 {[%clk 0:03:03.8]} 5. Nc3 {[%clk 0:03:05.2]}
5... a6 {[%clk 0:03:05.2]} 6. Be2 {[%clk 0:03:06.2]} 6... e5 {[%clk 0:03:06.3]}
7. Nb3 {[%clk 0:03:07.2]} 7... Be6 {[%clk 0:03:07.6]} 8. f4 {[%clk 0:03:05.8]}
8... exf4 {[%clk 0:03:03.4]} 9. Bxf4 {[%clk 0:03:05.5]} 9... Nc6 {[%clk
0:03:04.8]} 10. Qd2 {[%clk 0:03:06.4]} 10... Be7 {[%clk 0:03:05.1]} 11. O-O-O
{[%clk 0:03:07.2]} 11... Rc8 {[%clk 0:03:04.6]} 12. Bxd6 {[%clk 0:03:05.7]}
12... Bxd6 {[%clk 0:03:03.5]} 13. Qxd6 {[%clk 0:03:06.6]} 13... Qxd6 {[%clk
0:03:04]} 14. Rxd6 {[%clk 0:03:07.5]} 14... Ke7 {[%clk 0:03:05.5]} 15. Rhd1
{[%clk 0:03:06.8]} 15... b5 {[%clk 0:03:06.9]} 16. a3 {[%clk 0:03:02.3]} 16...
Ne5 {[%clk 0:03:00.3]} 17. Rxa6 {[%clk 0:02:58.8]} 17... Bxb3 {[%clk 0:02:59.3]}
18. cxb3 {[%clk 0:02:57]} 18... Nxe4 {[%clk 0:02:59.5]} 19. Bxb5 {[%clk
0:02:45.9]} 19... Nxc3 {[%clk 0:02:57.1]} 20. bxc3 {[%clk 0:02:46.4]} 20...
Rxc3+ {[%clk 0:02:58.7]} 21. Kb2 {[%clk 0:02:47.1]} 21... Rhc8 {[%clk
0:02:58.6]} 22. Rd2 {[%clk 0:02:45.1]} 22... Re3 {[%clk 0:02:54.7]} 23. Ra7+
{[%clk 0:02:40.1]} 23... Kf8 {[%clk 0:02:55.3]} 24. Re2 {[%clk 0:02:31.7]} 24...
Nd3+ {[%clk 0:02:46.5]} 25. Bxd3 {[%clk 0:02:28.3]} 25... Rxd3 {[%clk
0:02:48.4]} 26. a4 {[%clk 0:02:21.4]} 26... f6 {[%clk 0:02:48.3]} 27. Ree7
{[%clk 0:02:16.2]} 27... Rd2+ {[%clk 0:02:43.5]} 28. Ka3 {[%clk 0:02:16.9]}
28... Rxg2 {[%clk 0:02:45.3]} 29. h4 {[%clk 0:02:16.3]} 29... Rb8 {[%clk
0:02:42]} 30. Rab7 {[%clk 0:02:10.2]} 30... Rxb7 {[%clk 0:02:36.9]} 31. Rxb7
{[%clk 0:02:11]} 31... Rg1 {[%clk 0:02:38.5]} 32. a5 {[%clk 0:02:11.2]} 32...
Ra1+ {[%clk 0:02:39]} 33. Kb4 {[%clk 0:02:11.7]} 33... f5 {[%clk 0:02:40.6]} 34.
Rb5 {[%clk 0:02:12.1]} 34... g6 {[%clk 0:02:39.8]} 35. h5 {[%clk 0:02:05.7]}
35... Kf7 {[%clk 0:02:40.3]} 36. h6 {[%clk 0:02:06.5]} 36... g5 {[%clk
0:02:38.2]} 37. Rxf5+ {[%clk 0:02:06.6]} 37... Kg6 {[%clk 0:02:38.7]} 38. Re5
{[%clk 0:01:55]} 38... Kxh6 {[%clk 0:02:39.2]} 39. Kb5 {[%clk 0:01:55.8]} 39...
Kg6 {[%clk 0:02:38.4]} 40. Kb6 {[%clk 0:01:56.3]} 40... h5 {[%clk 0:02:38.9]}
41. a6 {[%clk 0:01:57.4]} 41... Rb1 {[%clk 0:02:17.6]} 42. a7 {[%clk 0:01:54]}
42... Rxb3+ {[%clk 0:02:18.1]} 43. Rb5 {[%clk 0:01:53]} 43... Ra3 {[%clk
0:02:19.2]} 44. Ra5 {[%clk 0:01:54]} 44... Rb3+ {[%clk 0:02:20.4]} 45. Ka6
{[%clk 0:01:54.2]} 1-0

[Event "*** Qualifier 3: Titled Tuesday 3|2 Blitz"]
[Site "Chess.com"]
[Date "2017.04.18"]
[Round "10"]
[White "ABDELAZEEZ-M"]
[Black "juniortay"]
[Result "0-1"]
[WhiteElo "2100"]
[BlackElo "2238"]
[TimeControl "180+2"]
[EndTime "15:14:11 PDT"]
[Termination "juniortay won by checkmate"]

1. d4 {[%clk 0:02:58.7]} 1... Nf6 {[%clk 0:03:00.1]} 2. Nf3 {[%clk 0:02:59.4]}
2... d6 {[%clk 0:02:59.9]} 3. c4 {[%clk 0:02:59.8]} 3... Nbd7 {[%clk 0:03:01.1]}
4. Nc3 {[%clk 0:03:01]} 4... e5 {[%clk 0:03:00.9]} 5. Bg5 {[%clk 0:03:01.9]}
5... Be7 {[%clk 0:03:01.8]} 6. e3 {[%clk 0:03:02.9]} 6... c6 {[%clk 0:03:01.8]}
7. Be2 {[%clk 0:03:03.9]} 7... O-O {[%clk 0:03:01.9]} 8. O-O {[%clk 0:03:04.6]}
8... a6 {[%clk 0:03:01.7]} 9. Qc2 {[%clk 0:03:04.7]} 9... Re8 {[%clk 0:03:01.1]}
10. Rfd1 {[%clk 0:03:04]} 10... Qc7 {[%clk 0:03:02]} 11. h3 {[%clk 0:03:03.5]}
11... Bf8 {[%clk 0:03:02.2]} 12. Bh4 {[%clk 0:03:04]} 12... e4 {[%clk
0:02:46.7]} 13. Nd2 {[%clk 0:03:04.5]} 13... d5 {[%clk 0:02:47]} 14. Bg3 {[%clk
0:03:01.5]} 14... Bd6 {[%clk 0:02:47.1]} 15. Bxd6 {[%clk 0:02:55.3]} 15... Qxd6
{[%clk 0:02:49]} 16. c5 {[%clk 0:02:53]} 16... Qc7 {[%clk 0:02:45.3]} 17. b4
{[%clk 0:02:53.3]} 17... Nf8 {[%clk 0:02:40.1]} 18. a4 {[%clk 0:02:53]} 18... g5
{[%clk 0:02:33]} 19. b5 {[%clk 0:02:53]} 19... g4 {[%clk 0:02:30.7]} 20. hxg4
{[%clk 0:02:53.3]} 20... Bxg4 {[%clk 0:02:29.9]} 21. Nf1 {[%clk 0:02:54.3]}
21... Ng6 {[%clk 0:02:09.4]} 22. Bxg4 {[%clk 0:02:54.2]} 22... Nxg4 {[%clk
0:02:09.7]} 23. Qe2 {[%clk 0:02:56.1]} 23... f5 {[%clk 0:02:02.2]} 24. bxa6
{[%clk 0:02:55.7]} 24... Rxa6 {[%clk 0:01:58.1]} 25. Rab1 {[%clk 0:02:56.3]}
25... Kh8 {[%clk 0:01:49.2]} 26. Rb2 {[%clk 0:02:56.8]} 26... Rg8 {[%clk
0:01:44.6]} 27. Rdb1 {[%clk 0:02:56.8]} 27... Ra7 {[%clk 0:01:44.7]} 28. Ng3
{[%clk 0:02:56.5]} 28... Nh4 {[%clk 0:01:38.5]} 29. Rb6 {[%clk 0:02:42.3]} 29...
f4 {[%clk 0:01:23.9]} 30. exf4 {[%clk 0:02:38.1]} 30... Qxf4 {[%clk 0:01:25.8]}
31. Rxb7 {[%clk 0:02:34.2]} 31... Rxb7 {[%clk 0:01:22.8]} 32. Rxb7 {[%clk
0:02:34.2]} 32... e3 {[%clk 0:01:17.9]} 33. Qc2 {[%clk 0:01:40.1]} 33... exf2+
{[%clk 0:01:06.7]} 34. Kh1 {[%clk 0:01:37.5]} 34... f1=Q+ {[%clk 0:01:06.3]} 35.
Nxf1 {[%clk 0:01:37.5]} 35... Qxf1# {[%clk 0:01:08.2]} 0-1

[Event "*** Qualifier 3: Titled Tuesday 3|2 Blitz"]
[Site "Chess.com"]
[Date "2017.04.18"]
[Round "10"]
[White "XiaoKangZhong"]
[Black "NowInChess"]
[Result "1-0"]
[WhiteElo "2011"]
[BlackElo "2055"]
[TimeControl "180+2"]
[EndTime "15:14:43 PDT"]
[Termination "XiaoKangZhong won on time"]

1. e4 {[%clk 0:02:47.5]} 1... e6 {[%clk 0:02:58.8]} 2. d4 {[%clk 0:02:48.2]}
2... d5 {[%clk 0:03:00.1]} 3. Nd2 {[%clk 0:02:49.9]} 3... Nf6 {[%clk 0:03:00.3]}
4. e5 {[%clk 0:02:51.3]} 4... Nfd7 {[%clk 0:03:01.6]} 5. Bd3 {[%clk 0:02:52.8]}
5... c5 {[%clk 0:03:03]} 6. c3 {[%clk 0:02:54.3]} 6... Nc6 {[%clk 0:03:04.6]} 7.
Ne2 {[%clk 0:02:56]} 7... cxd4 {[%clk 0:03:06.3]} 8. cxd4 {[%clk 0:02:57.2]}
8... f6 {[%clk 0:03:07.2]} 9. exf6 {[%clk 0:02:58.8]} 9... Nxf6 {[%clk
0:03:08.7]} 10. Nf3 {[%clk 0:02:58.6]} 10... Bd6 {[%clk 0:03:07.6]} 11. O-O
{[%clk 0:02:59.1]} 11... Qc7 {[%clk 0:03:08.3]} 12. g3 {[%clk 0:02:54.5]} 12...
O-O {[%clk 0:02:49.2]} 13. Bf4 {[%clk 0:02:52.3]} 13... Ng4 {[%clk 0:02:22.4]}
14. Bxd6 {[%clk 0:02:44.5]} 14... Qxd6 {[%clk 0:02:24.3]} 15. Nf4 {[%clk
0:02:43.6]} 15... Rxf4 {[%clk 0:02:17.8]} 16. gxf4 {[%clk 0:02:40.4]} 16... Qxf4
{[%clk 0:02:18.8]} 17. h3 {[%clk 0:02:24.1]} 17... Nxd4 {[%clk 0:01:23.9]} 18.
Bxh7+ {[%clk 0:02:22.4]} 18... Kxh7 {[%clk 0:01:25.8]} 19. Qxd4 {[%clk
0:02:22.9]} 19... Qxf3 {[%clk 0:01:07.2]} 20. Qxg4 {[%clk 0:02:22.1]} 20...
Qxg4+ {[%clk 0:00:57.6]} 21. hxg4 {[%clk 0:02:22.2]} 21... Bd7 {[%clk
0:00:32.9]} 22. Rac1 {[%clk 0:02:20.1]} 22... Bc6 {[%clk 0:00:28.9]} 23. Rfe1
{[%clk 0:02:20.4]} 23... Re8 {[%clk 0:00:28.2]} 24. Re5 {[%clk 0:02:20.9]} 24...
Kg6 {[%clk 0:00:26.4]} 25. f4 {[%clk 0:02:18.4]} 25... Kf7 {[%clk 0:00:19.9]}
26. Kf2 {[%clk 0:02:14.8]} 26... Rh8 {[%clk 0:00:20.1]} 27. Kg3 {[%clk
0:02:13.5]} 27... d4 {[%clk 0:00:13.6]} 28. Rd1 {[%clk 0:02:08.2]} 28... Rd8
{[%clk 0:00:12.3]} 29. b4 {[%clk 0:02:03.4]} 29... a6 {[%clk 0:00:11.6]} 30. Ra1
{[%clk 0:02:03.1]} 30... d3 {[%clk 0:00:10.1]} 31. Rd1 {[%clk 0:02:03.5]} 31...
d2 {[%clk 0:00:08.7]} 32. Re2 {[%clk 0:01:59.3]} 32... Rd3+ {[%clk 0:00:06.6]}
33. Kh4 {[%clk 0:01:57.9]} 33... Ra3 {[%clk 0:00:02.5]} 34. Rdxd2 {[%clk
0:01:56.3]} 34... Ra4 {[%clk 0:00:02.8]} 35. Rb2 {[%clk 0:01:56.9]} 1-0